fUSD/lending_fUSD_20240423
["ID","MTS","AMOUNT","RATE_DAILY","PERIOD"]
[323311281,1713885042449,-500.0,0.00011738,2]
[323311284,1713885042459,-500.0,0.00011738,2]
[323311287,1713885042469,-571.9,0.00011738,2]
[323311291,1713885042478,-500.31543563,0.00011738,2]
[323311294,1713885042488,-505.66999963,0.00011738,2]
[323311297,1713885042497,-500.0,0.00011738,2]
[323311299,1713885042506,-500.0,0.00011738,2]
[323311300,1713885042516,-500.0,0.00011738,2]
[323311302,1713885042526,-500.0,0.00011738,2]
[323311304,1713885042535,-500.0,0.00011738,2]
[323311306,1713885042544,-556.84,0.00011738,2]
[323311308,1713885042554,-500.0,0.00011738,2]
[323311309,1713885042564,-500.0,0.00011738,2]
[323311310,1713885042574,-500.0,0.00011738,2]
[323311311,1713885042583,-500.0,0.00011738,2]
[323311312,1713885042593,-509.95649053,0.00011738,2]
[323311313,1713885042603,-500.0,0.00011738,2]
[323311314,1713885042612,-500.0,0.00011738,2]
[323311316,1713885042622,-503.52093317,0.00011738,2]
[323311318,1713885042632,-500.0,0.00011738,2]
[323311320,1713885042642,-500.0,0.00011738,2]
[323311322,1713885042652,-500.0,0.00011738,2]
[323311324,1713885042662,-500.0,0.00011738,2]
[323311327,1713885042674,-500.0,0.00011738,2]
[323311330,1713885042685,-607.65897574,0.00011738,2]
[323311333,1713885042694,-500.0,0.00011738,2]
[323311337,1713885042705,-500.0,0.00011738,2]
[323311340,1713885042715,-500.0,0.00011738,2]
[323311343,1713885042726,-500.0,0.00011738,2]
[323311346,1713885042736,-500.0,0.00011738,2]
[323311349,1713885042746,-500.0,0.00011738,2]
[323311351,1713885042757,-533.52611047,0.00011738,2]
[323311353,1713885042767,-500.0,0.00011738,2]
[323311355,1713885042777,-518.85,0.00011738,2]
[323311357,1713885042788,-500.0,0.00011738,2]
[323311360,1713885042798,-500.0,0.00011738,2]
[323311362,1713885042808,-500.0,0.00011738,2]
[323311365,1713885042818,-500.0,0.00011738,2]
[323311368,1713885042828,-500.0,0.00011738,2]
[323311371,1713885042838,-500.0,0.00011738,2]
[323311373,1713885042849,-500.0,0.00011738,2]
[323311376,1713885042859,-500.0,0.00011738,2]
[323311378,1713885042869,-500.0,0.00011738,2]
[323311380,1713885042878,-500.0,0.00011738,2]
[323311382,1713885042888,-500.0,0.00011738,2]
[323311383,1713885042898,-500.0,0.00011738,2]
[323311384,1713885042908,-500.0,0.00011738,2]
[323311385,1713885042918,-500.0,0.00011738,2]
[323311386,1713885042929,-500.0,0.00011738,2]
[323311387,1713885042940,-772.72,0.00011738,2]
[323311388,1713885042950,-568.50832886,0.00011738,2]
[323311389,1713885042960,-500.0,0.00011738,2]
[323311390,1713885042970,-500.0,0.00011738,2]
[323311391,1713885042980,-501.26590899,0.00011738,2]
[323311392,1713885042990,-500.0,0.00011738,2]
[323311393,1713885043000,-500.0,0.00011738,2]
[323311394,1713885043011,-500.0,0.00011738,2]
[323311395,1713885043020,-500.0,0.00011738,2]
[323311396,1713885043030,-500.0,0.00011738,2]
[323311397,1713885043039,-500.0,0.00011738,2]
[323311398,1713885043049,-624.97458074,0.00011738,2]
[323311399,1713885043059,-503.41884963,0.00011738,2]
[323311400,1713885043069,-500.0,0.00011738,2]
[323311401,1713885043079,-500.0,0.00011738,2]
[323311402,1713885043088,-502.61763556,0.00011738,2]
[323311403,1713885043098,-502.23488927,0.00011738,2]
[323311404,1713885043108,-500.0,0.00011738,2]
[323311405,1713885043118,-500.0,0.00011738,2]
[323311406,1713885043127,-643.78,0.00011738,2]
[323311407,1713885043137,-500.0,0.00011738,2]
[323311408,1713885043147,-500.0,0.00011738,2]
[323311409,1713885043157,-500.0,0.00011738,2]
[323311410,1713885043167,-500.0,0.00011738,2]
[323311411,1713885043178,-500.0,0.00011738,2]
[323311412,1713885043188,-500.0,0.00011738,2]
[323311413,1713885043197,-500.0,0.00011738,2]
[323311414,1713885043208,-500.0,0.00011738,2]
[323311415,1713885043217,-500.0,0.00011738,2]
[323311416,1713885043226,-500.0,0.00011738,2]
[323311417,1713885043235,-500.0,0.00011738,2]
[323311418,1713885043244,-500.0,0.00011738,2]
[323311419,1713885043254,-560.46,0.00011738,2]
[323311420,1713885043264,-500.0,0.00011738,2]
[323311421,1713885043274,-587.84,0.00011738,2]
[323311422,1713885043283,-500.0,0.00011738,2]
[323311423,1713885043292,-500.0,0.00011738,2]
[323311424,1713885043302,-500.0,0.00011738,2]
[323311425,1713885043311,-500.0,0.00011738,2]
[323311426,1713885043321,-500.0,0.00011738,2]
[323311427,1713885043330,-500.0,0.00011738,2]
[323311428,1713885043339,-500.0,0.00011738,2]
[323311429,1713885043349,-502.75257128,0.00011738,2]
[323311430,1713885043359,-500.0,0.00011738,2]
[323311431,1713885043368,-500.0,0.00011738,2]
[323311432,1713885043378,-511.16,0.00011738,2]
[323311433,1713885043388,-500.0,0.00011738,2]
[323311434,1713885043398,-613.69,0.00011738,2]
[323311435,1713885043408,-500.0,0.00011738,2]
[323311436,1713885043417,-500.0,0.00011738,2]
[323311437,1713885043428,-500.0,0.00011738,2]
[323311438,1713885043438,-500.0,0.00011738,2]
[323311439,1713885043448,-500.0,0.00011738,2]
[323311440,1713885043458,-500.0,0.00011738,2]
[323311441,1713885043468,-500.0,0.00011738,2]
[323311442,1713885043479,-174.02311252,0.00011738,2]
[323311443,1713885043488,-500.0,0.00011738,2]
[323311444,1713885043498,-500.0,0.00011738,2]
[323311445,1713885043508,-591.39459924,0.00011738,2]
[323311446,1713885043518,-500.0,0.00011738,2]
[323311447,1713885043528,-596.13,0.00011738,2]
[323311448,1713885043538,-500.0,0.00011738,2]
[323311449,1713885043548,-500.0,0.00011738,2]
[323311450,1713885043557,-195.29893248,0.00011738,2]
[323311451,1713885043568,-500.0,0.00011738,2]
[323311452,1713885043577,-501.74,0.00011738,2]
[323311454,1713885043588,-500.0,0.00011738,2]
[323311455,1713885043599,-500.0,0.00011738,2]
[323311457,1713885043608,-500.0,0.00011738,2]
[323311459,1713885043619,-500.0,0.00011738,2]
[323311461,1713885043629,-500.0,0.00011738,2]
[323311463,1713885043639,-500.0,0.00011738,2]
[323311465,1713885043649,-598.87,0.00011738,2]
[323311466,1713885043658,-500.0,0.00011738,2]
[323311467,1713885043669,-500.0,0.00011738,2]
[323311468,1713885043682,-500.0,0.00011738,2]
[323311469,1713885043695,-500.0,0.00011738,2]
[323311470,1713885043705,-500.0,0.00011738,2]
[323311471,1713885043714,-501.90221127,0.00011738,2]
[323311472,1713885043724,-500.0,0.00011738,2]
[323311473,1713885043735,-169.7683502,0.00011738,2]
[323311474,1713885043745,-500.0,0.00011738,2]
[323311475,1713885043755,-500.0,0.00011738,2]
[323311476,1713885043769,-500.0,0.00011738,2]
[323311477,1713885043780,-500.0,0.00011738,2]
[323311478,1713885043790,-500.69091391,0.00011738,2]
[323311479,1713885043800,-500.0,0.00011738,2]
[323311480,1713885043810,-500.0,0.00011738,2]
[323311481,1713885043820,-500.0,0.00011738,2]
[323311482,1713885043829,-500.0,0.00011738,2]
[323311483,1713885043839,-500.0,0.00011738,2]
[323311484,1713885043849,-500.0,0.00011738,2]
[323311485,1713885043859,-500.0,0.00011738,2]
[323311486,1713885043869,-500.0,0.00011738,2]
[323311487,1713885043879,-500.0,0.00011738,2]
[323311488,1713885043888,-500.0,0.00011738,2]
[323311489,1713885043897,-500.0,0.00011738,2]
[323311490,1713885043907,-500.0,0.00011738,2]
[323311491,1713885043916,-156.50319548,0.00011738,2]
[323311492,1713885043925,-500.0,0.00011738,2]
[323311493,1713885043937,-500.0,0.00011738,2]
[323311494,1713885044137,-500.0,0.00011738,2]
[323311495,1713885044147,-500.0,0.00011738,2]
[323311496,1713885044157,-500.0,0.00011738,2]
[323311497,1713885044166,-500.0,0.00011738,2]
[323311498,1713885044175,-500.0,0.00011738,2]
[323311499,1713885044186,-500.0,0.00011738,2]
[323311500,1713885044196,-500.0,0.00011738,2]
[323311501,1713885044205,-500.33440779,0.00011738,2]
[323311502,1713885044215,-542.66,0.00011738,2]
[323311503,1713885044224,-502.4940036,0.00011738,2]
[323311504,1713885044233,-500.0,0.00011738,2]
[323311505,1713885044243,-500.0,0.00011738,2]
[323311506,1713885044252,-500.0,0.00011738,2]
[323311507,1713885044262,-500.0,0.00011738,2]
[323311508,1713885044271,-501.24082473,0.00011738,2]
[323311509,1713885044280,-199.97117796,0.00011738,2]
[323311510,1713885044290,-500.0,0.00011738,2]
[323311511,1713885044299,-500.0,0.00011738,2]
[323311512,1713885044309,-502.47617132,0.00011738,2]
[323311513,1713885044319,-500.0,0.00011738,2]
[323311514,1713885044328,-502.61846212,0.00011738,2]
[323311515,1713885044338,-500.0,0.00011738,2]
[323311516,1713885044347,-501.50071891,0.00011738,2]
[323311517,1713885044357,-502.79965979,0.00011738,2]
[323311518,1713885044366,-500.0,0.00011738,2]
[323311519,1713885044375,-500.0,0.00011738,2]
[323311520,1713885044384,-500.0,0.00011738,2]
[323311521,1713885044394,-500.0,0.00011738,2]
[323311522,1713885044403,-500.0,0.00011738,2]
[323311523,1713885044413,-500.0,0.00011738,2]
[323311524,1713885044422,-504.98590483,0.00011738,2]
[323311525,1713885044434,-500.0,0.00011738,2]
[323311526,1713885044444,-500.0,0.00011738,2]
[323311527,1713885044453,-500.0,0.00011738,2]
[323311528,1713885044463,-500.0,0.00011738,2]
[323311529,1713885044472,-500.0,0.00011738,2]
[323311530,1713885044482,-500.0,0.00011738,2]
[323311531,1713885044491,-617.31,0.00011738,2]
[323311532,1713885044501,-168.34485519,0.00011738,2]
[323311533,1713885044510,-500.0,0.00011738,2]
[323311534,1713885044519,-500.0,0.00011738,2]
[323311535,1713885044528,-500.0,0.00011738,2]
[323311536,1713885044539,-500.0,0.00011738,2]
[323311537,1713885044549,-543.36,0.00011738,2]
[323311538,1713885044558,-500.0,0.00011738,2]
[323311539,1713885044567,-632.17,0.00011738,2]
[323311540,1713885044577,-501.64,0.00011738,2]
[323311541,1713885044587,-500.0,0.00011738,2]
[323311542,1713885044597,-607.27,0.00011738,2]
[323311544,1713885044606,-503.20712225,0.00011738,2]
[323311546,1713885044616,-500.0,0.00011738,2]
[323311548,1713885044626,-126.61474479,0.00011738,2]
[323311563,1713885045059,-373.38525521,0.00011738,2]
[323311564,1713885045069,-500.0,0.00011738,2]
[323311565,1713885045078,-500.0,0.00011738,2]
[323311566,1713885045088,-500.0,0.00011738,2]
[323311567,1713885045097,-500.0,0.00011738,2]
[323311568,1713885045107,-500.0,0.00011738,2]
[323311569,1713885045117,-500.0,0.00011738,2]
[323311570,1713885045126,-500.0,0.00011738,2]
[323311571,1713885045135,-500.0,0.00011738,2]
[323311572,1713885045145,-500.0,0.00011738,2]
[323311573,1713885045154,-556.06,0.00011738,2]
[323311574,1713885045164,-500.0,0.00011738,2]
[323311575,1713885045173,-502.53623921,0.00011738,2]
[323311576,1713885045185,-134.05460152,0.00011738,2]
[323311577,1713885045198,-365.94539848,0.00011738,2]
[323311578,1713885045207,-500.0,0.00011738,2]
[323311579,1713885045217,-502.54270424,0.00011738,2]
[323311580,1713885045227,-500.0,0.00011738,2]
[323311581,1713885045236,-500.0,0.00011738,2]
[323311582,1713885045246,-500.0,0.00011738,2]
[323311583,1713885045255,-500.99,0.00011738,2]
[323311584,1713885045265,-500.0,0.00011738,2]
[323311585,1713885045274,-500.0,0.00011738,2]
[323311586,1713885045283,-500.0,0.00011738,2]
[323311587,1713885045293,-581.36,0.00011738,2]
[323311588,1713885045303,-500.0,0.00011738,2]
[323311589,1713885045312,-500.0,0.00011738,2]
[323311590,1713885045321,-500.0,0.00011738,2]
[323311591,1713885045330,-339.12937008,0.00011738,2]
[323311592,1713885045342,-175.23548654,0.00011738,2]
[323311593,1713885045352,-500.0,0.00011738,2]
[323311594,1713885045363,-500.0,0.00011738,2]
[323311595,1713885045372,-639.81,0.00011738,2]
[323311596,1713885045382,-500.0,0.00011738,2]
[323311597,1713885045392,-500.0,0.00011738,2]
[323311598,1713885045402,-500.0,0.00011738,2]
[323311599,1713885045412,-500.0,0.00011738,2]
[323311600,1713885045422,-500.0,0.00011738,2]
[323311601,1713885045433,-500.0,0.00011738,2]
[323311602,1713885045442,-500.0,0.00011738,2]
[323311603,1713885045453,-500.0,0.00011738,2]
[323311604,1713885045462,-500.0,0.00011738,2]
[323311605,1713885045474,-500.0,0.00011738,2]
[323311606,1713885045483,-500.0,0.00011738,2]
[323311607,1713885045493,-536.65,0.00011738,2]
[323311608,1713885045502,-503.13438236,0.00011738,2]
[323311609,1713885045512,-500.0,0.00011738,2]
[323311610,1713885045523,-500.0,0.00011738,2]
[323311611,1713885045533,-500.0,0.00011738,2]
[323311612,1713885045542,-500.0,0.00011738,2]
[323311613,1713885045552,-500.0,0.00011738,2]
[323311614,1713885045562,-500.0,0.00011738,2]
[323311615,1713885045572,-500.0,0.00011738,2]
[323311617,1713885045581,-500.0,0.00011738,2]
[323311619,1713885045591,-500.0,0.00011738,2]
[323311621,1713885045600,-500.0,0.00011738,2]
[323311623,1713885045610,-500.0,0.00011738,2]
[323311625,1713885045619,-500.0,0.00011738,2]
[323311627,1713885045629,-500.0,0.00011738,2]
[323311630,1713885045638,-500.0,0.00011738,2]
[323311631,1713885045648,-500.0,0.00011738,2]
[323311632,1713885045657,-500.0,0.00011738,2]
[323311633,1713885045666,-500.0,0.00011738,2]
[323311635,1713885045679,-244.88367504,0.00011738,2]
[323311637,1713885045691,-500.0,0.00011738,2]
[323311639,1713885045700,-500.0,0.00011738,2]
[323311641,1713885045709,-500.0,0.00011738,2]
[323311643,1713885045719,-500.0,0.00011738,2]
[323311645,1713885045729,-500.0,0.00011738,2]
[323311647,1713885045739,-500.0,0.00011738,2]
[323311649,1713885045748,-500.0,0.00011738,2]
[323311651,1713885045759,-500.0,0.00011738,2]
[323311652,1713885045770,-500.0,0.00011738,2]
[323311653,1713885045780,-500.0,0.00011738,2]
[323311654,1713885045789,-500.0,0.00011738,2]
[323311655,1713885045799,-500.0,0.00011738,2]
[323311656,1713885045809,-500.0,0.00011738,2]
[323311657,1713885045818,-500.0,0.00011738,2]
[323311658,1713885045828,-500.0,0.00011738,2]
[323311659,1713885045837,-501.25340668,0.00011738,2]
[323311660,1713885045847,-500.0,0.00011738,2]
[323311661,1713885045857,-500.0,0.00011738,2]
[323311662,1713885045866,-500.0,0.00011738,2]
[323311663,1713885045875,-500.0,0.00011738,2]
[323311664,1713885045885,-500.0,0.00011738,2]
[323311665,1713885045895,-500.0,0.00011738,2]
[323311666,1713885045905,-500.0,0.00011738,2]
[323311667,1713885045915,-500.0,0.00011738,2]
[323311668,1713885045925,-500.0,0.00011738,2]
[323311669,1713885045939,-500.0,0.00011738,2]
[323311670,1713885045948,-500.0,0.00011738,2]
[323311671,1713885045958,-627.99,0.00011738,2]
[323311672,1713885045967,-500.0,0.00011738,2]
[323311673,1713885045976,-500.0,0.00011738,2]
[323311674,1713885045986,-500.0,0.00011738,2]
[323311675,1713885045995,-261.53804761,0.00011738,2]
[323311676,1713885046008,-238.46195239,0.00011738,2]
[323311677,1713885046017,-500.0,0.00011738,2]
[323311678,1713885046028,-500.0,0.00011738,2]
[323311679,1713885046038,-550.89,0.00011738,2]
[323311680,1713885046047,-500.0,0.00011738,2]
[323311681,1713885046056,-500.0,0.00011738,2]
[323311682,1713885046066,-500.0,0.00011738,2]
[323311683,1713885046075,-476.42041799,0.00011738,2]
[323311684,1713885046084,-500.0,0.00011738,2]
[323311685,1713885046093,-500.0,0.00011738,2]
[323311686,1713885046103,-500.0,0.00011738,2]
[323311687,1713885046112,-500.0,0.00011738,2]
[323311688,1713885046122,-500.0,0.00011738,2]
[323311689,1713885046131,-500.0,0.00011738,2]
[323311690,1713885046141,-500.0,0.00011738,2]
[323311691,1713885046150,-500.0,0.00011738,2]
[323311692,1713885046159,-500.0,0.00011738,2]
[323311693,1713885046168,-500.0,0.00011738,2]
[323311694,1713885046177,-500.0,0.00011738,2]
[323311695,1713885046190,-500.0,0.00011738,2]
[323311696,1713885046200,-500.0,0.00011738,2]
[323311697,1713885046209,-500.0,0.00011738,2]
[323311698,1713885046219,-502.9586078,0.00011738,2]
[323311699,1713885046228,-508.20911902,0.00011738,2]
[323311700,1713885046237,-500.0,0.00011738,2]
[323311701,1713885046246,-500.0,0.00011738,2]
[323311702,1713885046255,-500.0,0.00011738,2]
[323311703,1713885046265,-588.74,0.00011738,2]
[323311704,1713885046274,-500.0,0.00011738,2]
[323311705,1713885046283,-500.0,0.00011738,2]
[323311706,1713885046293,-290.40471269,0.00011738,2]
[323311707,1713885046302,-500.0,0.00011738,2]
[323311708,1713885046311,-500.0,0.00011738,2]
[323311709,1713885046321,-521.81,0.00011738,2]
[323311710,1713885046331,-500.4325115,0.00011738,2]
[323311711,1713885046340,-1027.51111776,0.00011773,2]
[323311713,1713885046349,-1044.30427625,0.00011773,2]
[323311715,1713885046358,-900.0,0.000118,4]
[323311717,1713885046441,-1200.0,0.000119,4]
[323311718,1713885046450,-189.47416399,0.00011998,2]
[323311719,1713885046459,-1175.25379841,0.00012,2]
[323311720,1713885046472,-63.15468059,0.00012,2]
[323311721,1713885046481,-2567.00214223,0.00012,2]
[323311722,1713885046512,-280.01132817,0.00011637,2]
[323311723,1713885046522,-8959.98867183,0.00012,2]
[323311776,1713885047482,-280.01132815,0.00011774,2]
[323311778,1713885047492,-280.01132815,0.00011911,2]
[323311780,1713885047502,-8473.00918594,0.00012,2]
[323311782,1713885047511,-2916.0,0.00012,2]
[323311785,1713885047521,-2150.98451079,0.00012,2]
[323311787,1713885047533,-918.44621892,0.00012,2]
[323311789,1713885047543,-326.05950775,0.00012,2]
[323311791,1713885047555,-673.94049225,0.00012,2]
[323311793,1713885047564,-412.61977506,0.00012,2]
[323311795,1713885047576,-897.53416522,0.00012,2]
[323311798,1713885047594,-2596.15324763,0.00012,2]
[323311801,1713885047606,-1093.69281209,0.00012,2]
[323311803,1713885047615,-1391.419659,0.00012,2]
[323311806,1713885047630,-32245.03264335,0.00012,2]
[323311808,1713885047645,-9392.68738486,0.00012,2]
[323311810,1713885047656,-16503.94147848,0.00012,2]
[323311851,1713885048085,-3353.76447742,0.00012,2]
[323311854,1713885048099,-6757.96750055,0.00012,2]
[323311856,1713885048114,-32793.82785512,0.00012,2]
[323311859,1713885048128,-1617.592005,0.00012,2]
[323311861,1713885048140,-1363.68834929,0.00012,2]
[323311863,1713885048152,-455.64,0.00012,2]
[323311871,1713885048223,-79354.95802957,0.00012,2]
[323311875,1713885048249,-360.68756511,0.00012,2]
[323311886,1713885048352,-878.84648096,0.00012,2]
[323311889,1713885048364,-327.67000001,0.00012,2]
[323311892,1713885048385,-4484.63995763,0.00012,2]
[323311920,1713885049077,-1033.44189411,0.00011503,2]
[323311921,1713885049088,-1417.05,0.00011736,2]
[323311922,1713885049098,-532.82,0.00011737,2]
[323311923,1713885049108,-627811.95246721,0.00012,2]
[323311924,1713885049121,-5368.33610561,0.00012,2]
[323311925,1713885049130,-1750.0,0.00012,2]
[323311926,1713885049140,-116351.74688507,0.00012,2]
[323311927,1713885049150,-500.0,0.0001201,2]
[323311928,1713885049159,-837.37,0.0001201,2]
[323311929,1713885049170,-500.0,0.0001201,2]
[323311930,1713885049179,-500.0,0.0001201,2]
[323311931,1713885049192,-799.66,0.0001201,2]
[323311932,1713885049201,-638.17,0.0001201,2]
[323311933,1713885049212,-500.0,0.0001201,2]
[323311934,1713885049222,-752.79,0.0001201,2]
[323311935,1713885049232,-862.47,0.0001201,2]
[323311936,1713885049242,-500.0,0.0001201,2]
[323311937,1713885049251,-2745.53,0.0001201,2]
[323311938,1713885049261,-5680.55,0.0001201,2]
[323311939,1713885049270,-500.0,0.0001201,2]
[323311940,1713885049279,-820.49,0.0001201,2]
[323311941,1713885049289,-658.13,0.0001201,2]
[323311942,1713885049298,-4194.57,0.0001201,2]
[323311943,1713885049308,-734.34,0.0001201,2]
[323311944,1713885049318,-843.95,0.0001201,2]
[323311945,1713885049327,-1658.53,0.0001201,2]
[323311946,1713885049337,-523.46,0.0001201,2]
[323311947,1713885049346,-1893.65,0.0001201,2]
[323311948,1713885049356,-602.46,0.0001201,2]
[323311949,1713885049365,-4007.93,0.0001201,2]
[323311950,1713885049375,-1064.72,0.0001201,2]
[323311951,1713885049384,-1774.25,0.0001201,2]
[323311952,1713885049394,-740.12,0.0001201,2]
[323311953,1713885049403,-500.0,0.0001201,2]
[323311954,1713885049412,-500.0,0.0001201,2]
[323311955,1713885049422,-500.0,0.0001201,2]
[323311956,1713885049433,-1774.77,0.0001201,2]
[323311957,1713885049445,-864.72,0.0001201,2]
[323311958,1713885049454,-520.06,0.0001201,2]
[323311959,1713885049464,-1417.05,0.0001201,2]
[323311960,1713885049473,-500.0,0.00012011,2]
[323311961,1713885049483,-500.0,0.00012011,2]
[323311962,1713885049493,-500.0,0.00012011,2]
[323311963,1713885049503,-500.0,0.00012011,2]
[323311964,1713885049514,-500.0,0.00012011,2]
[323311965,1713885049524,-500.0,0.00012011,2]
[323311966,1713885049533,-500.0,0.00012011,2]
[323311967,1713885049543,-261.54,0.00012011,2]
[323311968,1713885049553,-500.0,0.00012011,2]
[323311969,1713885049562,-500.0,0.00012011,2]
[323311970,1713885049572,-500.0,0.00012011,2]
[323311971,1713885049582,-500.0,0.00012011,2]
[323311972,1713885049774,-500.0,0.00012011,2]
[323311973,1713885049791,-500.0,0.00012011,2]
[323311974,1713885049800,-500.0,0.00012011,2]
[323311975,1713885049810,-500.0,0.00012011,2]
[323311976,1713885049819,-500.0,0.00012011,2]
[323311977,1713885049829,-500.0,0.00012011,2]
[323311978,1713885049838,-175.81,0.00012011,2]
[323311979,1713885049847,-500.0,0.00012011,2]
[323311980,1713885049857,-500.0,0.00012011,2]
[323311981,1713885049865,-500.0,0.00012011,2]
[323311982,1713885049875,-500.0,0.00012011,2]
[323311983,1713885049884,-330.64,0.00012011,2]
[323311984,1713885049892,-500.0,0.00012011,2]
[323311985,1713885049901,-500.0,0.00012011,2]
[323311986,1713885049910,-517.14,0.00012011,2]
[323311987,1713885049920,-500.0,0.00012011,2]
[323311988,1713885049930,-404.86,0.00012011,2]
[323311989,1713885049942,-500.0,0.00012011,2]
[323311990,1713885049951,-500.0,0.00012011,2]
[323311991,1713885049960,-500.0,0.00012011,2]
[323311992,1713885049970,-728.44,0.00012011,2]
[323311993,1713885049979,-500.0,0.00012011,2]
[323311994,1713885049988,-500.0,0.00012011,2]
[323311995,1713885049997,-500.0,0.00012011,2]
[323311996,1713885050007,-540.5089206,0.00012011,2]
[323311997,1713885050017,-360.78934632,0.00012011,2]
[323311998,1713885050027,-765.79,0.00012011,2]
[323311999,1713885050037,-500.0,0.00012011,2]
[323312000,1713885050046,-500.0,0.00012011,2]
[323312001,1713885050055,-500.0,0.00012011,2]
[323312002,1713885050064,-189.87,0.00012011,2]
[323312003,1713885050076,-500.0,0.00012011,2]
[323312004,1713885050085,-500.0,0.00012011,2]
[323312005,1713885050094,-255.2327174,0.00012011,2]
[323312006,1713885050104,-500.0,0.00012011,2]
[323312007,1713885050113,-590.28,0.00012011,2]
[323312008,1713885050122,-500.0,0.00012011,2]
[323312009,1713885050133,-500.0,0.00012011,2]
[323312010,1713885050142,-500.0,0.00012011,2]
[323312011,1713885050152,-500.0,0.00012011,2]
[323312012,1713885050161,-500.0,0.00012011,2]
[323312013,1713885050171,-577.91,0.00012011,2]
[323312014,1713885050180,-571.73,0.00012011,2]
[323312015,1713885050193,-500.0,0.00012011,2]
[323312016,1713885050203,-982.16,0.00012011,2]
[323312017,1713885050212,-185.68,0.00012011,2]
[323312018,1713885050222,-636.92,0.00012011,2]
[323312019,1713885050231,-500.0,0.00012011,2]
[323312020,1713885050241,-500.0,0.00012011,2]
[323312021,1713885050250,-500.0,0.00012011,2]
[323312022,1713885050260,-500.0,0.00012011,2]
[323312023,1713885050269,-500.0,0.00012011,2]
[323312024,1713885050278,-500.0,0.00012011,2]
[323312025,1713885050287,-244.74786915,0.00012011,2]
[323312026,1713885050296,-500.0,0.00012011,2]
[323312027,1713885050305,-500.0,0.00012011,2]
[323312028,1713885050314,-280.68061869,0.00012011,2]
[323312029,1713885050323,-500.0,0.00012011,2]
[323312030,1713885050333,-500.0,0.00012011,2]
[323312031,1713885050343,-611.25,0.00012011,2]
[323312032,1713885050352,-500.0,0.00012011,2]
[323312033,1713885050362,-500.0,0.00012011,2]
[323312034,1713885050371,-500.0,0.00012011,2]
[323312035,1713885050380,-804.34,0.00012011,2]
[323312036,1713885050390,-500.0,0.00012011,2]
[323312037,1713885050399,-500.0,0.00012011,2]
[323312038,1713885050408,-550.48,0.00012011,2]
[323312039,1713885050417,-500.0,0.00012011,2]
[323312040,1713885050426,-500.0,0.00012011,2]
[323312041,1713885050437,-500.0,0.00012011,2]
[323312042,1713885050446,-504.96,0.00012011,2]
[323312043,1713885050456,-787.16,0.00012011,2]
[323312044,1713885050464,-723.23,0.00012011,2]
[323312045,1713885050474,-500.0,0.00012011,2]
[323312046,1713885050482,-500.0,0.00012011,2]
[323312047,1713885050492,-266.91844622,0.00012011,2]
[323312048,1713885050501,-500.0,0.00012011,2]
[323312049,1713885050510,-500.0,0.00012011,2]